[Event "Titled Tuesday Blitz October 31 Late 2023"]
[White "Rustemov, Alexander"]
[Black "Wu, Derek"]
[WhiteFideId "4119002"]
[BlackFideId "30914558"]
[WhiteElo "2872"]
[BlackElo "2680"]
[Result "0-1"]
[Round "4"]
[TimeControl "180+1"]
[Date "2023.10.31"]
[WhiteClock "0:00:00"]
[BlackClock "0:00:14"]
[Board "19"]

1. d4 {[%clk 0:03:00]}  g6 {[%clk 0:02:56]} 2. c4 {[%clk 0:03:01]}  Bg7 {[%clk 0:02:56]} 3. g3 {[%clk 0:03:01]}  Nf6 {[%clk 0:02:55]} 4. Bg2 {[%clk 0:03:01]}  c5 {[%clk 0:02:54]} 5. Nf3 {[%clk 0:02:59]}  cxd4 {[%clk 0:02:54]} 6. Nxd4 {[%clk 0:02:59]}  O-O {[%clk 0:02:54]} 7. O-O {[%clk 0:02:59]}  d5 {[%clk 0:02:55]} 8. cxd5 {[%clk 0:02:58]}  Nxd5 {[%clk 0:02:56]} 9. Nc3 {[%clk 0:02:59]}  Nxc3 {[%clk 0:02:55]} 10. bxc3 {[%clk 0:03:00]}  Nc6 {[%clk 0:02:55]} 11. Be3 {[%clk 0:03:00]}  Ne5 {[%clk 0:02:47]} 12. Qb3 {[%clk 0:02:54]}  Ng4 {[%clk 0:02:37]} 13. Bg5 {[%clk 0:02:47]}  h6 {[%clk 0:02:37]} 14. Bc1 {[%clk 0:02:44]}  e5 {[%clk 0:02:34]} 15. Nb5 {[%clk 0:02:33]}  Be6 {[%clk 0:02:31]} 16. c4 {[%clk 0:02:26]}  Rc8 {[%clk 0:02:21]} 17. Na3 {[%clk 0:02:25]}  b6 {[%clk 0:02:14]} 18. Bb2 {[%clk 0:02:23]}  Qc7 {[%clk 0:02:06]} 19. Rac1 {[%clk 0:02:18]}  Rfd8 {[%clk 0:02:00]} 20. h3 {[%clk 0:02:12]}  Nf6 {[%clk 0:02:00]} 21. Qa4 {[%clk 0:01:38]}  Qd7 {[%clk 0:01:50]} 22. Qa6 {[%clk 0:01:30]}  Bxh3 {[%clk 0:01:45]} 23. Nb5 {[%clk 0:01:25]}  Bxg2 {[%clk 0:01:44]} 24. Kxg2 {[%clk 0:01:25]}  Rxc4 {[%clk 0:01:41]} 25. Rxc4 {[%clk 0:01:11]}  Qd5+ {[%clk 0:01:41]} 26. Kg1 {[%clk 0:01:08]}  Qxc4 {[%clk 0:01:42]} 27. Bxe5 {[%clk 0:00:59]}  Qxe2 {[%clk 0:01:40]} 28. Bxf6 {[%clk 0:00:55]}  Bxf6 {[%clk 0:01:41]} 29. Qa4 {[%clk 0:00:49]}  Rd2 {[%clk 0:01:36]} 30. a3 {[%clk 0:00:48]}  Be5 {[%clk 0:01:23]} 31. Kg2 {[%clk 0:00:39]}  a5 {[%clk 0:01:13]} 32. Na7 {[%clk 0:00:32]}  Kg7 {[%clk 0:00:59]} 33. Nc6 {[%clk 0:00:27]}  Bd6 {[%clk 0:00:47]} 34. Na7 {[%clk 0:00:07]}  Bc5 {[%clk 0:00:45]} 35. Qf4 {[%clk 0:00:06]}  Rd4 {[%clk 0:00:32]} 36. Qc7 {[%clk 0:00:01]}  Qe4+ {[%clk 0:00:32]} 37. Kg1 {[%clk 0:00:01]}  Rd2 {[%clk 0:00:24]} 38. Nc6 {[%clk 0:00:02]}  Rxf2 {[%clk 0:00:23]} 39. Rxf2 {[%clk 0:00:02]}  Qe1+ {[%clk 0:00:23]} 40. Kg2 {[%clk 0:00:02]}  Qxf2+ {[%clk 0:00:24]} 41. Kh3 {[%clk 0:00:03]}  Qf1+ {[%clk 0:00:23]} 42. Kh2 {[%clk 0:00:03]}  Bg1+ {[%clk 0:00:22]} 43. Kh1 {[%clk 0:00:03]}  Bc5+ {[%clk 0:00:19]} 44. Kh2 {[%clk 0:00:03]}  Qe2+ {[%clk 0:00:17]} 45. Kh1 {[%clk 0:00:03]}  Qf3+ {[%clk 0:00:16]} 46. Kh2 {[%clk 0:00:04]}  h5 {[%clk 0:00:15]} 47. Nd8 {[%clk 0:00:04]}  Qe2+ {[%clk 0:00:13]} 48. Kh3 {[%clk 0:00:04]}  Qe7 {[%clk 0:00:13]} 49. Qc8 {[%clk 0:00:04]}  Bxa3 {[%clk 0:00:12]} 50. Kg2 {[%clk 0:00:04]}  Qe4+ {[%clk 0:00:12]} 51. Kh2 {[%clk 0:00:04]}  Qf5 {[%clk 0:00:13]} 52. Qa8 {[%clk 0:00:03]}  Qf2+ {[%clk 0:00:12]} 53. Kh3 {[%clk 0:00:03]}  Bc5 {[%clk 0:00:13]} 54. Nc6 {[%clk 0:00:02]}  Qf1+ {[%clk 0:00:13]} 55. Kh2 {[%clk 0:00:03]}  Bg1+ {[%clk 0:00:13]} 56. Kh1 {[%clk 0:00:03]}  Bf2+ {[%clk 0:00:13]} 57. Kh2 {[%clk 0:00:00]}  Qg1+ {[%clk 0:00:14]} 0-1


[Site "https://www.chess.com"]

[Event "Titled Tuesday Blitz October 31 Late 2023"]
[White "Manukyan, Sargis A."]
[Black "Lobanov, Sergei"]
[WhiteFideId "13303970"]
[BlackFideId "24183750"]
[WhiteElo "2626"]
[BlackElo "2824"]
[Result "1-0"]
[Round "4"]
[TimeControl "180+1"]
[Date "2023.10.31"]
[WhiteClock "0:01:28"]
[BlackClock "0:00:12"]
[Board "20"]

1. d4 {[%clk 0:03:00]}  Nf6 {[%clk 0:03:00]} 2. c4 {[%clk 0:03:01]}  e6 {[%clk 0:03:00]} 3. Nc3 {[%clk 0:03:01]}  Bb4 {[%clk 0:03:00]} 4. e3 {[%clk 0:03:02]}  O-O {[%clk 0:03:00]} 5. a3 {[%clk 0:03:01]}  Bxc3+ {[%clk 0:02:57]} 6. bxc3 {[%clk 0:03:01]}  c5 {[%clk 0:02:53]} 7. Bd3 {[%clk 0:03:00]}  Nc6 {[%clk 0:02:51]} 8. Ne2 {[%clk 0:03:00]}  b6 {[%clk 0:02:47]} 9. O-O {[%clk 0:02:59]}  Ba6 {[%clk 0:02:39]} 10. e4 {[%clk 0:02:59]}  Ne8 {[%clk 0:02:34]} 11. f4 {[%clk 0:02:55]}  Na5 {[%clk 0:02:33]} 12. f5 {[%clk 0:02:54]}  Bxc4 {[%clk 0:02:32]} 13. f6 {[%clk 0:02:47]}  gxf6 {[%clk 0:01:36]} 14. Bh6 {[%clk 0:02:42]}  Ng7 {[%clk 0:01:28]} 15. Bxc4 {[%clk 0:02:39]}  Nxc4 {[%clk 0:01:24]} 16. Qd3 {[%clk 0:02:39]}  f5 {[%clk 0:01:05]} 17. exf5 {[%clk 0:02:29]}  Nb2 {[%clk 0:00:30]} 18. Qg3 {[%clk 0:01:56]}  Qf6 {[%clk 0:00:30]} 19. Bg5 {[%clk 0:01:56]}  Nxf5 {[%clk 0:00:31]} 20. Bxf6+ {[%clk 0:01:48]}  Nxg3 {[%clk 0:00:31]} 21. Nxg3 {[%clk 0:01:47]}  h6 {[%clk 0:00:32]} 22. Rf3 {[%clk 0:01:33]}  Rfe8 {[%clk 0:00:22]} 23. Nh5 {[%clk 0:01:31]}  Kh7 {[%clk 0:00:12]} 24. Be5 {[%clk 0:01:28]} 1-0


[Site "https://www.chess.com"]

[Event "Titled Tuesday Blitz October 31 Late 2023"]
[White "Eljanov, Pavel"]
[Black "Hajiyev, Kanan"]
[WhiteFideId "14102951"]
[BlackFideId "13404148"]
[WhiteElo "2819"]
[BlackElo "2571"]
[Result "1-0"]
[Round "4"]
[TimeControl "180+1"]
[Date "2023.10.31"]
[WhiteClock "0:01:13"]
[BlackClock "0:00:00"]
[Board "21"]

1. d4 {[%clk 0:03:00]}  d5 {[%clk 0:02:59]} 2. Bf4 {[%clk 0:03:00]}  c6 {[%clk 0:03:00]} 3. e3 {[%clk 0:03:00]}  Nf6 {[%clk 0:03:00]} 4. c4 {[%clk 0:03:00]}  a6 {[%clk 0:03:00]} 5. Nf3 {[%clk 0:02:56]}  Bg4 {[%clk 0:03:00]} 6. Qb3 {[%clk 0:02:54]}  Bxf3 {[%clk 0:02:48]} 7. Qxb7 {[%clk 0:02:41]}  Nbd7 {[%clk 0:02:36]} 8. gxf3 {[%clk 0:02:40]}  e6 {[%clk 0:02:29]} 9. Qxc6 {[%clk 0:02:34]}  Bb4+ {[%clk 0:02:16]} 10. Nc3 {[%clk 0:02:34]}  O-O {[%clk 0:02:14]} 11. Qa4 {[%clk 0:02:20]}  Bxc3+ {[%clk 0:02:02]} 12. bxc3 {[%clk 0:02:20]}  Nb6 {[%clk 0:02:02]} 13. Qa5 {[%clk 0:02:19]}  Nxc4 {[%clk 0:01:55]} 14. Qxd8 {[%clk 0:02:18]}  Rfxd8 {[%clk 0:01:56]} 15. Bxc4 {[%clk 0:02:16]}  dxc4 {[%clk 0:01:57]} 16. Kd2 {[%clk 0:02:16]}  Nd5 {[%clk 0:01:53]} 17. Bg3 {[%clk 0:02:17]}  f5 {[%clk 0:01:52]} 18. Be5 {[%clk 0:02:16]}  Rd7 {[%clk 0:01:45]} 19. Rab1 {[%clk 0:02:15]}  Raa7 {[%clk 0:01:46]} 20. e4 {[%clk 0:02:13]}  Ne7 {[%clk 0:01:41]} 21. Rb6 {[%clk 0:02:08]}  Rdb7 {[%clk 0:01:33]} 22. Rhb1 {[%clk 0:02:05]}  Rxb6 {[%clk 0:01:27]} 23. Rxb6 {[%clk 0:02:06]}  Kf7 {[%clk 0:01:27]} 24. a4 {[%clk 0:02:05]}  a5 {[%clk 0:01:24]} 25. Ke3 {[%clk 0:02:02]}  g5 {[%clk 0:01:23]} 26. Rb5 {[%clk 0:01:41]}  Nc6 {[%clk 0:01:13]} 27. Bd6 {[%clk 0:01:39]}  Rd7 {[%clk 0:01:09]} 28. e5 {[%clk 0:01:37]}  f4+ {[%clk 0:00:40]} 29. Ke4 {[%clk 0:01:36]}  Kg6 {[%clk 0:00:18]} 30. Rc5 {[%clk 0:01:31]}  Nd8 {[%clk 0:00:18]} 31. Rxa5 {[%clk 0:01:23]}  Nb7 {[%clk 0:00:17]} 32. Ra6 {[%clk 0:01:23]}  h5 {[%clk 0:00:05]} 33. Bb4 {[%clk 0:01:21]}  Kf7 {[%clk 0:00:06]} 34. a5 {[%clk 0:01:21]}  Ke8 {[%clk 0:00:03]} 35. Ra8+ {[%clk 0:01:20]}  Kf7 {[%clk 0:00:03]} 36. a6 {[%clk 0:01:16]}  Nd8 {[%clk 0:00:04]} 37. a7 {[%clk 0:01:14]}  Nc6 {[%clk 0:00:04]} 38. Rf8+ {[%clk 0:01:13]}  Kg7 {[%clk 0:00:03]} 39. a8=Q {[%clk 0:01:13]}  Ra7 {[%clk 0:00:03]} 40. Rg8+ {[%clk 0:01:13]}  Kh7 {[%clk 0:00:00]} 41. Rh8+ {[%clk 0:01:13]} 1-0


[Site "https://www.chess.com"]

[Event "Titled Tuesday Blitz October 31 Late 2023"]
[White "Toropov, Pavel"]
[Black "Sokolovsky, Yahli"]
[WhiteFideId "24129178"]
[BlackFideId "2820242"]
[WhiteElo "2567"]
[BlackElo "2792"]
[Result "0-1"]
[Round "4"]
[TimeControl "180+1"]
[Date "2023.10.31"]
[WhiteClock "0:00:00"]
[BlackClock "0:00:45"]
[Board "22"]

1. e4 {[%clk 0:02:54]}  d6 {[%clk 0:02:56]} 2. d4 {[%clk 0:02:44]}  g6 {[%clk 0:02:57]} 3. Nc3 {[%clk 0:02:45]}  Bg7 {[%clk 0:02:57]} 4. h3 {[%clk 0:02:45]}  a6 {[%clk 0:02:57]} 5. g4 {[%clk 0:02:45]}  b5 {[%clk 0:02:58]} 6. Bg2 {[%clk 0:02:46]}  Bb7 {[%clk 0:02:58]} 7. Nge2 {[%clk 0:02:46]}  h5 {[%clk 0:02:57]} 8. g5 {[%clk 0:02:44]}  e6 {[%clk 0:02:57]} 9. Be3 {[%clk 0:02:36]}  Ne7 {[%clk 0:02:57]} 10. Qd2 {[%clk 0:02:35]}  Nd7 {[%clk 0:02:57]} 11. h4 {[%clk 0:02:23]}  c5 {[%clk 0:02:57]} 12. f4 {[%clk 0:02:07]}  Rc8 {[%clk 0:02:50]} 13. d5 {[%clk 0:01:59]}  exd5 {[%clk 0:02:46]} 14. exd5 {[%clk 0:01:54]}  Nb6 {[%clk 0:02:40]} 15. Bf2 {[%clk 0:01:32]}  b4 {[%clk 0:02:22]} 16. Ne4 {[%clk 0:01:13]}  Nexd5 {[%clk 0:01:43]} 17. c3 {[%clk 0:00:56]}  O-O {[%clk 0:01:36]} 18. cxb4 {[%clk 0:00:30]}  Nc4 {[%clk 0:01:30]} 19. Qc2 {[%clk 0:00:16]}  Nce3 {[%clk 0:01:24]} 20. Bxe3 {[%clk 0:00:11]}  Nxe3 {[%clk 0:01:25]} 21. Qd3 {[%clk 0:00:11]}  Nxg2+ {[%clk 0:01:25]} 22. Kf2 {[%clk 0:00:12]}  c4 {[%clk 0:00:59]} 23. Qf3 {[%clk 0:00:09]}  Re8 {[%clk 0:00:54]} 24. N2g3 {[%clk 0:00:08]}  Ne3 {[%clk 0:00:50]} 25. Qxe3 {[%clk 0:00:07]}  d5 {[%clk 0:00:51]} 26. Rad1 {[%clk 0:00:05]}  Qc7 {[%clk 0:00:49]} 27. Nf6+ {[%clk 0:00:02]}  Bxf6 {[%clk 0:00:49]} 28. Qf3 {[%clk 0:00:02]}  Bxb2 {[%clk 0:00:47]} 29. f5 {[%clk 0:00:00]}  d4 {[%clk 0:00:45]} 0-1


[Site "https://www.chess.com"]

[Event "Titled Tuesday Blitz October 31 Late 2023"]
[White "Ankerst, Mihael"]
[Black "Javakhadze, Zurab"]
[WhiteFideId "14602369"]
[BlackFideId "13603647"]
[WhiteElo "2438"]
[BlackElo "2782"]
[Result "0-1"]
[Round "4"]
[TimeControl "180+1"]
[Date "2023.10.31"]
[WhiteClock "0:00:00"]
[BlackClock "0:00:16"]
[Board "23"]

1. e4 {[%clk 0:02:59]}  c5 {[%clk 0:02:59]} 2. Nf3 {[%clk 0:02:58]}  d6 {[%clk 0:03:00]} 3. d4 {[%clk 0:02:59]}  cxd4 {[%clk 0:03:01]} 4. Nxd4 {[%clk 0:02:58]}  Nf6 {[%clk 0:03:01]} 5. Nc3 {[%clk 0:02:58]}  g6 {[%clk 0:03:02]} 6. f4 {[%clk 0:02:58]}  Nc6 {[%clk 0:03:01]} 7. Nxc6 {[%clk 0:02:58]}  bxc6 {[%clk 0:03:02]} 8. e5 {[%clk 0:02:58]}  Nd7 {[%clk 0:02:55]} 9. Bc4 {[%clk 0:02:58]}  Nb6 {[%clk 0:02:20]} 10. Bb3 {[%clk 0:02:49]}  Bg7 {[%clk 0:02:15]} 11. exd6 {[%clk 0:02:47]}  exd6 {[%clk 0:02:14]} 12. Qe2+ {[%clk 0:02:46]}  Qe7 {[%clk 0:02:13]} 13. Qxe7+ {[%clk 0:02:46]}  Kxe7 {[%clk 0:02:14]} 14. O-O {[%clk 0:02:43]}  Be6 {[%clk 0:02:08]} 15. Re1 {[%clk 0:02:42]}  Kd7 {[%clk 0:02:05]} 16. Be3 {[%clk 0:02:37]}  Rhe8 {[%clk 0:02:01]} 17. Rad1 {[%clk 0:02:36]}  Kc7 {[%clk 0:01:53]} 18. Kf2 {[%clk 0:02:23]}  Rab8 {[%clk 0:01:40]} 19. Bd4 {[%clk 0:02:20]}  Bxd4+ {[%clk 0:01:27]} 20. Rxd4 {[%clk 0:02:19]}  c5 {[%clk 0:01:17]} 21. Rde4 {[%clk 0:02:00]}  c4 {[%clk 0:01:17]} 22. Ba4 {[%clk 0:01:59]}  Nxa4 {[%clk 0:01:06]} 23. Nxa4 {[%clk 0:01:59]}  d5 {[%clk 0:00:53]} 24. Re5 {[%clk 0:01:51]}  Kd6 {[%clk 0:00:53]} 25. c3 {[%clk 0:01:43]}  Bd7 {[%clk 0:00:49]} 26. b3 {[%clk 0:00:43]}  Bxa4 {[%clk 0:00:45]} 27. bxa4 {[%clk 0:00:41]}  Rxe5 {[%clk 0:00:45]} 28. fxe5+ {[%clk 0:00:39]}  Ke6 {[%clk 0:00:44]} 29. Re2 {[%clk 0:00:34]}  Rb1 {[%clk 0:00:42]} 30. g4 {[%clk 0:00:20]}  Rc1 {[%clk 0:00:41]} 31. Rb2 {[%clk 0:00:20]}  Rxc3 {[%clk 0:00:39]} 32. Rb7 {[%clk 0:00:21]}  d4 {[%clk 0:00:33]} 33. Rxa7 {[%clk 0:00:20]}  Rc2+ {[%clk 0:00:33]} 34. Kf3 {[%clk 0:00:20]}  d3 {[%clk 0:00:33]} 35. Ke4 {[%clk 0:00:21]}  Re2+ {[%clk 0:00:33]} 36. Kf3 {[%clk 0:00:21]}  Rxe5 {[%clk 0:00:32]} 37. Ra6+ {[%clk 0:00:04]}  Kd7 {[%clk 0:00:32]} 38. Ra7+ {[%clk 0:00:04]}  Kc6 {[%clk 0:00:32]} 39. Ra6+ {[%clk 0:00:04]}  Kc7 {[%clk 0:00:27]} 40. Ra7+ {[%clk 0:00:03]}  Kb6 {[%clk 0:00:27]} 41. Rd7 {[%clk 0:00:04]}  Ka5 {[%clk 0:00:22]} 42. Kf4 {[%clk 0:00:03]}  Re2 {[%clk 0:00:19]} 43. Kf3 {[%clk 0:00:03]}  Kxa4 {[%clk 0:00:18]} 44. Rd4 {[%clk 0:00:03]}  Kb4 {[%clk 0:00:18]} 45. g5 {[%clk 0:00:03]}  Rxa2 {[%clk 0:00:17]} 46. h4 {[%clk 0:00:04]}  Kc3 {[%clk 0:00:17]} 47. Rd7 {[%clk 0:00:04]}  Ra1 {[%clk 0:00:16]} 48. Ke3 {[%clk 0:00:02]}  Re1+ {[%clk 0:00:15]} 49. Kf2 {[%clk 0:00:00]}  d2 {[%clk 0:00:16]} 0-1


[Site "https://www.chess.com"]

[Event "Titled Tuesday Blitz October 31 Late 2023"]
[White "Terry, Renato"]
[Black "FoxOnTheRun97"]
[WhiteFideId "3803457"]
[WhiteElo "3011"]
[BlackElo "2609"]
[Result "1-0"]
[Round "4"]
[TimeControl "180+1"]
[Date "2023.10.31"]
[WhiteClock "0:00:07"]
[BlackClock "0:00:01"]
[Board "27"]

1. e4 {[%clk 0:03:00]}  c6 {[%clk 0:03:00]} 2. Nf3 {[%clk 0:02:54]}  d5 {[%clk 0:03:00]} 3. exd5 {[%clk 0:02:55]}  cxd5 {[%clk 0:03:00]} 4. Ne5 {[%clk 0:02:56]}  e6 {[%clk 0:02:56]} 5. d4 {[%clk 0:02:56]}  Nf6 {[%clk 0:02:55]} 6. c3 {[%clk 0:02:52]}  Nc6 {[%clk 0:02:52]} 7. Bd3 {[%clk 0:02:49]}  Nxe5 {[%clk 0:02:20]} 8. dxe5 {[%clk 0:02:49]}  Nd7 {[%clk 0:02:20]} 9. Bf4 {[%clk 0:02:37]}  Qb6 {[%clk 0:02:12]} 10. Qe2 {[%clk 0:02:35]}  Nc5 {[%clk 0:02:07]} 11. Bb5+ {[%clk 0:02:26]}  Bd7 {[%clk 0:02:06]} 12. Bxd7+ {[%clk 0:02:26]}  Nxd7 {[%clk 0:02:05]} 13. O-O {[%clk 0:02:27]}  Rc8 {[%clk 0:02:00]} 14. b4 {[%clk 0:02:03]}  Bxb4 {[%clk 0:01:01]} 15. Qg4 {[%clk 0:01:03]}  Bf8 {[%clk 0:00:51]} 16. Nd2 {[%clk 0:01:04]}  g6 {[%clk 0:00:45]} 17. c4 {[%clk 0:01:03]}  Bg7 {[%clk 0:00:30]} 18. cxd5 {[%clk 0:01:02]}  exd5 {[%clk 0:00:31]} 19. Rab1 {[%clk 0:00:59]}  Qe6 {[%clk 0:00:19]} 20. Qxe6+ {[%clk 0:00:59]}  fxe6 {[%clk 0:00:20]} 21. Rxb7 {[%clk 0:00:59]}  Bxe5 {[%clk 0:00:17]} 22. Bxe5 {[%clk 0:00:56]}  Nxe5 {[%clk 0:00:18]} 23. Re1 {[%clk 0:00:57]}  Nc4 {[%clk 0:00:16]} 24. Rxe6+ {[%clk 0:00:54]}  Kd8 {[%clk 0:00:16]} 25. Nf3 {[%clk 0:00:44]}  Re8 {[%clk 0:00:14]} 26. Rxe8+ {[%clk 0:00:26]}  Kxe8 {[%clk 0:00:15]} 27. g3 {[%clk 0:00:26]}  Nd6 {[%clk 0:00:10]} 28. Rxa7 {[%clk 0:00:25]}  h5 {[%clk 0:00:10]} 29. Rg7 {[%clk 0:00:25]}  Rc3 {[%clk 0:00:09]} 30. Rxg6 {[%clk 0:00:24]}  Ne4 {[%clk 0:00:06]} 31. Ne5 {[%clk 0:00:18]}  Rc1+ {[%clk 0:00:06]} 32. Kg2 {[%clk 0:00:18]}  Rc2 {[%clk 0:00:07]} 33. Re6+ {[%clk 0:00:07]}  Kd8 {[%clk 0:00:06]} 34. Nd3 {[%clk 0:00:08]}  Rd2 {[%clk 0:00:05]} 35. Nf4 {[%clk 0:00:04]}  Rxf2+ {[%clk 0:00:05]} 36. Kg1 {[%clk 0:00:05]}  Rxa2 {[%clk 0:00:05]} 37. Re5 {[%clk 0:00:05]}  Ra1+ {[%clk 0:00:05]} 38. Kg2 {[%clk 0:00:05]}  Ra2+ {[%clk 0:00:05]} 39. Kh3 {[%clk 0:00:06]}  Nf6 {[%clk 0:00:05]} 40. Re6 {[%clk 0:00:03]}  Ng4 {[%clk 0:00:03]} 41. Nxh5 {[%clk 0:00:04]}  Nxh2 {[%clk 0:00:03]} 42. Rd6+ {[%clk 0:00:04]}  Ke7 {[%clk 0:00:03]} 43. Rxd5 {[%clk 0:00:05]}  Nf3 {[%clk 0:00:03]} 44. Nf4 {[%clk 0:00:04]}  Ne1 {[%clk 0:00:03]} 45. Rb5 {[%clk 0:00:03]}  Kf6 {[%clk 0:00:02]} 46. Kg4 {[%clk 0:00:03]}  Ra3 {[%clk 0:00:02]} 47. Rf5+ {[%clk 0:00:03]}  Kg7 {[%clk 0:00:02]} 48. Rg5+ {[%clk 0:00:03]}  Kh7 {[%clk 0:00:01]} 49. Nd5 {[%clk 0:00:02]}  Nf3 {[%clk 0:00:01]} 50. Nf6+ {[%clk 0:00:02]}  Kh6 {[%clk 0:00:01]} 51. Ng8+ {[%clk 0:00:03]}  Kh7 {[%clk 0:00:01]} 52. Nf6+ {[%clk 0:00:04]}  Kh6 {[%clk 0:00:02]} 53. Rf5 {[%clk 0:00:04]}  Nh2+ {[%clk 0:00:02]} 54. Kh3 {[%clk 0:00:04]}  Ng4 {[%clk 0:00:01]} 55. Nxg4+ {[%clk 0:00:04]}  Kg6 {[%clk 0:00:02]} 56. Rd5 {[%clk 0:00:04]}  Ra6 {[%clk 0:00:02]} 57. Nf2 {[%clk 0:00:04]}  Rb6 {[%clk 0:00:02]} 58. Nd3 {[%clk 0:00:04]}  Ra6 {[%clk 0:00:02]} 59. Nf4+ {[%clk 0:00:05]}  Kh6 {[%clk 0:00:02]} 60. Kg4 {[%clk 0:00:06]}  Ra7 {[%clk 0:00:02]} 61. Rd6+ {[%clk 0:00:06]}  Kg7 {[%clk 0:00:02]} 62. Kg5 {[%clk 0:00:06]}  Ra5+ {[%clk 0:00:02]} 63. Nd5 {[%clk 0:00:07]}  Ra3 {[%clk 0:00:02]} 64. Rd7+ {[%clk 0:00:07]}  Kf8 {[%clk 0:00:03]} 65. g4 {[%clk 0:00:08]}  Ra4 {[%clk 0:00:02]} 66. Kf5 {[%clk 0:00:08]}  Ra5 {[%clk 0:00:03]} 67. g5 {[%clk 0:00:07]}  Ke8 {[%clk 0:00:03]} 68. Rd6 {[%clk 0:00:07]}  Kf7 {[%clk 0:00:03]} 69. g6+ {[%clk 0:00:08]}  Kg7 {[%clk 0:00:03]} 70. Rd7+ {[%clk 0:00:09]}  Kg8 {[%clk 0:00:03]} 71. Kg5 {[%clk 0:00:07]}  Ra1 {[%clk 0:00:01]} 72. Nf6+ {[%clk 0:00:07]}  Kf8 {[%clk 0:00:01]} 73. g7# {[%clk 0:00:07]} 1-0


[Site "https://www.chess.com"]

[Event "Titled Tuesday Blitz October 31 Late 2023"]
[White "Karamsetty, Jeevan"]
[Black "Yoo, Christopher Woojin"]
[WhiteFideId "2025337"]
[BlackFideId "30909694"]
[WhiteElo "2602"]
[BlackElo "3000"]
[Result "0-1"]
[Round "4"]
[TimeControl "180+1"]
[Date "2023.10.31"]
[WhiteClock "0:00:00"]
[BlackClock "0:00:09"]
[Board "28"]

1. e4 {[%clk 0:03:00]}  c6 {[%clk 0:02:48]} 2. d4 {[%clk 0:02:58]}  d5 {[%clk 0:02:48]} 3. exd5 {[%clk 0:02:59]}  cxd5 {[%clk 0:02:47]} 4. Bd3 {[%clk 0:02:59]}  Nc6 {[%clk 0:02:46]} 5. c3 {[%clk 0:03:00]}  Qc7 {[%clk 0:02:46]} 6. Ne2 {[%clk 0:03:00]}  Bg4 {[%clk 0:02:46]} 7. O-O {[%clk 0:03:00]}  e6 {[%clk 0:02:46]} 8. Qe1 {[%clk 0:03:00]}  Nf6 {[%clk 0:02:42]} 9. f3 {[%clk 0:02:59]}  Bh5 {[%clk 0:02:41]} 10. Qh4 {[%clk 0:02:59]}  h6 {[%clk 0:02:13]} 11. Qh3 {[%clk 0:02:26]}  Bd6 {[%clk 0:01:46]} 12. Ng3 {[%clk 0:02:15]}  Bxg3 {[%clk 0:01:42]} 13. hxg3 {[%clk 0:02:15]}  O-O {[%clk 0:01:39]} 14. g4 {[%clk 0:02:03]}  Bg6 {[%clk 0:01:38]} 15. Bxg6 {[%clk 0:02:04]}  fxg6 {[%clk 0:01:38]} 16. g5 {[%clk 0:02:04]}  hxg5 {[%clk 0:01:29]} 17. Qxe6+ {[%clk 0:02:04]}  Rf7 {[%clk 0:01:17]} 18. Bxg5 {[%clk 0:02:04]}  Re8 {[%clk 0:01:17]} 19. Qh3 {[%clk 0:02:00]}  Nh5 {[%clk 0:01:17]} 20. Nd2 {[%clk 0:01:26]}  Nf4 {[%clk 0:01:17]} 21. Bxf4 {[%clk 0:01:23]}  Qxf4 {[%clk 0:01:18]} 22. Rae1 {[%clk 0:01:19]}  Rfe7 {[%clk 0:01:14]} 23. Rxe7 {[%clk 0:01:15]}  Rxe7 {[%clk 0:01:15]} 24. Nb3 {[%clk 0:01:08]}  Qe3+ {[%clk 0:01:10]} 25. Kh2 {[%clk 0:00:49]}  Kf7 {[%clk 0:01:08]} 26. Qg3 {[%clk 0:00:41]}  Re8 {[%clk 0:01:04]} 27. Qf2 {[%clk 0:00:33]}  Qf4+ {[%clk 0:01:03]} 28. g3 {[%clk 0:00:25]}  Qh6+ {[%clk 0:01:02]} 29. Kg1 {[%clk 0:00:22]}  Rh8 {[%clk 0:01:03]} 30. Qg2 {[%clk 0:00:21]}  Ne7 {[%clk 0:01:00]} 31. Re1 {[%clk 0:00:20]}  Qg5 {[%clk 0:00:54]} 32. Re5 {[%clk 0:00:16]}  Qf6 {[%clk 0:00:49]} 33. Nc5 {[%clk 0:00:14]}  b6 {[%clk 0:00:30]} 34. Ne6 {[%clk 0:00:13]}  Rh5 {[%clk 0:00:29]} 35. Rxh5 {[%clk 0:00:12]}  gxh5 {[%clk 0:00:30]} 36. Nf4 {[%clk 0:00:12]}  h4 {[%clk 0:00:28]} 37. Nd3 {[%clk 0:00:12]}  Nf5 {[%clk 0:00:24]} 38. Ne5+ {[%clk 0:00:11]}  Kg8 {[%clk 0:00:25]} 39. gxh4 {[%clk 0:00:11]}  Qxh4 {[%clk 0:00:26]} 40. Qg4 {[%clk 0:00:07]}  Qe1+ {[%clk 0:00:26]} 41. Kh2 {[%clk 0:00:07]}  Qd2+ {[%clk 0:00:23]} 42. Qg2 {[%clk 0:00:04]}  Qf4+ {[%clk 0:00:22]} 43. Kg1 {[%clk 0:00:04]}  Qc1+ {[%clk 0:00:22]} 44. Kh2 {[%clk 0:00:04]}  Qh6+ {[%clk 0:00:19]} 45. Kg1 {[%clk 0:00:04]}  Qe3+ {[%clk 0:00:19]} 46. Kh2 {[%clk 0:00:04]}  Qh6+ {[%clk 0:00:11]} 47. Kg1 {[%clk 0:00:04]}  Nh4 {[%clk 0:00:12]} 48. Qe2 {[%clk 0:00:03]}  Qf4 {[%clk 0:00:10]} 49. Ng4 {[%clk 0:00:03]}  Nxf3+ {[%clk 0:00:10]} 50. Kf2 {[%clk 0:00:00]}  Nxd4+ {[%clk 0:00:09]} 0-1


[Site "https://www.chess.com"]